{"text_format":"1","workbook":"xlsx","n_sheets":3,"sheets":["Transfert","Compte magasin","Inventaire"],"not_rendered":{"charts":0,"images":0,"macros":1,"external_links":0,"defined_names":1,"comments":0,"pivot_tables":0},"unopened":[],"bounds":{"document_bytes":16777216,"sheet_cells":100000,"rows_first":2000,"rows_last":500,"rows_between":2000,"halvings":0,"cell_chars":16384,"cell_head_chars":4096},"cells_cut":0,"cells_raw":0,"read":"whole","date_system":"1900"}

{"sheet":"Transfert","index":0,"n_rows":15,"n_cols":12,"rows_kept":15,"cut":false,"hidden":false,"merged":[[1,2,1,8]]}
[]
[null,null,"Transfert entre magasins"]
["كود الصنف","الفئة","اسم الصنف","مرجع","المخزون الحالي","الوحدة","التاريخ","المخزن المحول منه","المخزن المحول اليه","الكمية المنقولة","STOCK PR","STOCK DES"]
["E124","بسكوت","اهلاوى ويفر 8 علبه *12 3ج","8",null,"KG","2023-08-01","مخزن سنيوريتا قنا الرئيسى","مخزن حسن احمد",1]
["E124","بسكوت","اهلاوى ويفر 8 علبه *12 3ج","8",null,"KG","2023-08-02","مخزن سنيوريتا قنا الرئيسى","مخزن حسن احمد",2]
["E124","بسكوت","اهلاوى ويفر 8 علبه *12 3ج","8",null,"KG","2023-08-16","مخزن سنيوريتا قنا الرئيسى","مخزن حسن احمد",1]
["e125","بسكوت","اهلاوى تمر 8 علبة","8",null,"KG","2023-08-19","مخزن سنيوريتا قنا الرئيسى","مخزن ابوبكر حسين حسن",2]
["E124","بسكوت","اهلاوى ويفر 8 علبه *12 3ج","8",null,"KG","2023-12-04","مخزن سنيوريتا قنا الرئيسى","مخزن حسن احمد",1]
["E124","بسكوت","اهلاوى ويفر 8 علبه *12 3ج","8",null,"KG","2023-12-08","مخزن سنيوريتا قنا الرئيسى","مخزن حسن احمد",10]
["E124","بسكوت","اهلاوى ويفر 8 علبه *12 3ج","8",null,"KG","2023-12-09","مخزن سنيوريتا قنا الرئيسى","مخزن حسن احمد",1]
["E124","بسكوت","اهلاوى ويفر 8 علبه *12 3ج","8",null,"KG","2023-12-09","مخزن سنيوريتا قنا الرئيسى","مخزن حسن احمد",1]
["E124","بسكوت","اهلاوى ويفر 8 علبه *12 3ج","8",null,"KG","2023-12-09","مخزن سنيوريتا قنا الرئيسى","مخزن حسن احمد",1]
["E124","بسكوت","اهلاوى ويفر 8 علبه *12 3ج","8",null,"KG","2023-12-09","مخزن سنيوريتا قنا الرئيسى","مخزن حسن احمد",1]
["E124","بسكوت","اهلاوى ويفر 8 علبه *12 3ج","8",null,"KG","2023-12-09","مخزن حسن احمد","مخزن سنيوريتا قنا الرئيسى",2]
["E124","بسكوت","اهلاوى ويفر 8 علبه *12 3ج","8",null,"KG","2023-12-09","مخزن سنيوريتا قنا الرئيسى","مخزن سيد احمد",2]

{"sheet":"Compte magasin","index":1,"n_rows":2,"n_cols":12,"rows_kept":2,"cut":false,"hidden":false,"merged":[]}
["كود الصنف","الفئة","اسم الصنف","مرجع","المخزون الحالي","الوحدة","التاريخ","المخزن المحول منه","المخزن المحول اليه","الكمية المنقولة","STOCK PR","STOCK DES"]
["E124","بسكوت","اهلاوى ويفر 8 علبه *12 3ج",8,null,"KG","2023-09-12","مخزن حسن احمد","مخزن سنيوريتا قنا الرئيسى",2]

{"sheet":"Inventaire","index":2,"n_rows":30,"n_cols":12,"rows_kept":30,"cut":false,"hidden":false,"merged":[]}
["جرد المخزون",{"$f":"NOW()","v":"2024-01-13T11:59:58.920"},{"$f":"SUBTOTAL(9,C3:C31)","v":2402},{"$f":"SUBTOTAL(9,D3:D31)","v":2397},null,null,null,null,null,{"$f":"SUBTOTAL(9,J3:J31)","v":20},{"$f":"SUBTOTAL(9,K3:K31)","v":25}]
[]
["Code article","Catégorie","Stock initial","Stock actuel","Seuil d'alerte","Descriptif","Référence","Unité \nde mesure","Observations","Entrées","Sorties","Magasin"]
["E124","بسكوت",2,{"$f":"C4+J4-K4","v":16},10,"اهلاوى ويفر 8 علبه *12 3ج","8","KG","Transfert",16,2,"مخزن حسن احمد"]
["E124","بسكوت",49,30,10,"اهلاوى ويفر 8 علبه *12 3ج",8,"KG","Transfert",2,21,"مخزن سنيوريتا قنا الرئيسى"]
["e125","بسكوت",273,271,10,"اهلاوى تمر 8 علبة",8,"KG","Transfert",null,2,"مخزن سنيوريتا قنا الرئيسى"]
["e126","بسكوت",109,109,2,"بسكوت ويفر 2ج * 12",12,"KG","Transfert",null,null,"مخزن سنيوريتا قنا الرئيسى"]
[127,"بسكوت",54,54,2,"بسكوت اهلاوى 2ج *12 علبة",12,"KG","Transfert",null,null,"مخزن سنيوريتا قنا الرئيسى"]
[139,"بسكوت",55,55,2,"اهلاوى 3 ج 8 *علبة",8,"KG","Transfert",null,null,"مخزن سنيوريتا قنا الرئيسى"]
[123,"بسكوت",138,138,2,"اهلاوى 5 ج * 6 علبة",6,"KG","Transfert",null,null,"مخزن حسن احمد"]
[125,"بسكوت",30,30,10,"اهلاوى تمر 8 علبة",8,"KG","Transfert",null,null,"مخزن حسن احمد"]
["e126","بسكوت",50,50,2,"بسكوت ويفر 2ج * 12",12,"KG","Transfert",null,null,"مخزن حسن احمد"]
[127,"بسكوت",185,185,10,"بسكوت اهلاوى 2ج *12 علبة",12,"KG","Transfert",null,null,"مخزن حسن احمد"]
[129,"بسكوت",65,65,10,"اهلاوى ديتو 6 ع 5ج",6,"KG","Transfert",null,null,"مخزن حسن احمد"]
[139,"بسكوت",60,60,2,"اهلاوى 3 ج 8 *علبة",8,"KG","Transfert",null,null,"مخزن حسن احمد"]
[123,"بسكوت",115,115,2,"اهلاوى 5 ج * 6 علبة",6,"KG","Transfert",null,null,"مخزن سيد احمد"]
["E124","بسكوت",36,38,2,"اهلاوى ويفر 8 علبه *12 3ج",8,"KG","Transfert",2,null,"مخزن سيد احمد"]
[125,"بسكوت",127,127,2,"اهلاوى تمر 8 علبة",8,"KG","Transfert",null,null,"مخزن سيد احمد"]
["e126","بسكوت",3,3,10,"بسكوت ويفر 2ج * 12",12,"KG","Transfert",null,null,"مخزن سيد احمد"]
[127,"بسكوت",690,690,2,"بسكوت اهلاوى 2ج *12 علبة",12,"KG","Transfert",null,null,"مخزن سيد احمد"]
[129,"بسكوت",95,95,10,"اهلاوى ديتو 6 ع 5ج",6,"KG","Transfert",null,null,"مخزن سيد احمد"]
[139,"بسكوت",197,197,10,"اهلاوى 3 ج 8 *علبة",8,"KG","Transfert",null,null,"مخزن سيد احمد"]
[123,"بسكوت",15,15,2,"اهلاوى 5 ج * 6 علبة",6,"KG","Transfert",null,null,"مخزن ابوبكر حسين حسن"]
["E124","بسكوت",3,3,2,"اهلاوى ويفر 8 علبه *12 3ج",8,"KG","Transfert",null,null,"مخزن ابوبكر حسين حسن"]
["e125","بسكوت",1,1,2,"اهلاوى تمر 8 علبة",8,"KG","Transfert",null,null,"مخزن ابوبكر حسين حسن"]
["e126","بسكوت",1,1,2,"بسكوت ويفر 2ج * 12",12,"KG","Transfert",null,null,"مخزن ابوبكر حسين حسن"]
[127,"بسكوت",8,8,10,"بسكوت اهلاوى 2ج *12 علبة",12,"KG","Transfert",null,null,"مخزن ابوبكر حسين حسن"]
[128,"بسكوت",10,10,2,"اهلاوى دويتو 12 علبة *2ج",12,"KG","Transfert",null,null,"مخزن ابوبكر حسين حسن"]
[129,"بسكوت",20,20,10,"اهلاوى ديتو 6 ع 5ج",6,"KG","Transfert",null,null,"مخزن ابوبكر حسين حسن"]
[139,"بسكوت",11,11,10,"اهلاوى 3 ج 8 *علبة",8,"KG","Transfert",null,null,"مخزن ابوبكر حسين حسن"]